Cogmind - Beta 13 @@@ ROGUE MODE // 2024.04.11 @ 10:30:07 Player: lucasboxerhead Result: Self-destructed Performance ------------- Evolutions (2) 1000 Regions Visited (5) 1000 Robots Destroyed (13) 65 Value Destroyed (268) 268 Prototype IDs (4) 80 Alien Tech Used (0) 0 Bonus (300) 300 TOTAL SCORE: 2713 Bonus ------- Aligned with FarCom 300 Cogmind --------- Core Integrity 428/550 Matter 208/300 Energy 1612/1625 System Corruption 0% Temperature Danger (402) Movement Flying (117) Ox1 Location -8/Materials Parts ------- > --- POWER (2) -------- Light Ion Engine > --- PROPULSION (4) --- Flight Unit Flight Unit > --- UTILITY (3) ------ Superbattery > --- WEAPON (2) ------- Spread Laser > --- INVENTORY (5) ---- Flight Unit Reaction Control System Trap Reconfigurator Heavy Particle Gun Light Assault Rifle Peak State ------------ > --- POWER ------------ Light Ion Engine Light Ion Engine > --- PROPULSION ------- Flight Unit Flight Unit Flight Unit Flight Unit > --- UTILITY ---------- Superbattery Trap Reconfigurator Supersonic Drone Bay > --- WEAPON ----------- Spread Laser Improved Datajack > --- INVENTORY -------- Structural Scanner ECM Suite Reaction Control System Heavy Particle Gun Light Assault Rifle [Rating: 39] Favorites ----------- Power Light Ion Engine Engine Light Ion Engine Propulsion Flight Unit Leg Aluminum Leg Flight Unit Flight Unit Utility Supersonic Drone Bay Device Supersonic Drone Bay Storage Superbattery Weapon Small Laser Energy Gun Small Laser Ballistic Gun Light Assault Rifle Special Melee Weapon Improved Datajack Build | -11 -10 -10 -10 -9 -8 ------- Run | Yrd Mat Min Exi Min Mat Slots Evolved 4 | . . . . . 4 Power 1 | . . . . . 1 Propulsion 2 | . . . . . 2 Utility 1 | . . . . . 1 Weapon . | . . . . . . Parts Attached 41 | 5 14 2 4 . 16 Power 7 | 1 2 . . . 4 Engine 7 | 1 2 . . . 4 Core . | . . . . . . Reactor . | . . . . . . Propulsion 14 | 2 6 1 . . 5 Treads . | . . . . . . Leg 2 | 2 . . . . . Wheel . | . . . . . . Hover . | . . . . . . Flight 12 | . 6 1 . . 5 Utility 8 | . 2 1 4 . 1 Device 6 | . 2 1 3 . . Storage 2 | . . . 1 . 1 Processor . | . . . . . . Hackware . | . . . . . . Protection . | . . . . . . Artifact . | . . . . . . Weapon 12 | 2 4 . . . 6 Energy Gun 8 | . 3 . . . 5 Energy Cannon . | . . . . . . Ballistic Gun 3 | 2 1 . . . . Ballistic Cannon . | . . . . . . Launcher . | . . . . . . Special Weapon . | . . . . . . Impact Weapon . | . . . . . . Slashing Weapon . | . . . . . . Piercing Weapon . | . . . . . . Special Melee Weapon 1 | . . . . . 1 Unidentified Prototypes 4 | . . . 3 . 1 Parts Lost 9 | . . . . . 9 Power 3 | . . . . . 3 Propulsion 4 | . . . . . 4 Utility 1 | . . . . . 1 Weapon 1 | . . . . . 1 Highest Loss Streak 4 | . . . . . 4 To Critical Strikes . | . . . . . . Average Slot Usage (%) 78 | . 66 77 85 85 80 Engine 12 | . 12 14 14 14 11 Leg 2 | . 13 . . . . Flight 26 | . 13 28 28 28 30 Device 16 | . 6 20 26 28 14 Storage 4 | . . . 1 . 9 Energy Gun 9 | . 5 14 14 14 8 Ballistic Gun 3 | . 14 . . . . Special Melee Weapon 3 | . . . . . 7 Naked Turns . | . . . . . . Heaviest Build 16 | 7 9 7 7 6 16 Greatest Support 20 | 20 20 8 8 8 16 Greatest Overweight (x) 1 | . 1 . . . 1 Average Overweight (x) . | . . . . . . Largest Inventory Capacity 5 | 5 5 5 5 5 5 Average Capacity 5 | 5 5 5 5 5 5 Most Carried 5 | . 4 3 5 5 5 Average Carried 3 | . 1 2 3 5 4 Final Capacity 5 | 5 5 5 5 5 5 Final Carried 5 | . 3 2 5 5 5 Class Distribution -------------------- 50% | Mutant 24% | Scavenger-Sprinter 13% | Scavenger-Mutant 10% | Infiltrator-Mutant Dominant Class ---------------- Mutant | -10/Materials Mutant | -10/Mines Mutant | -10/Exiles Mutant | -9/Mines Scavenger-Sprinter | -8/Materials Resources | -11 -10 -10 -10 -9 -8 ----------- Run | Yrd Mat Min Exi Min Mat Matter Collected 487 | 62 48 106 . 37 234 Remotely . | . . . . . . Salvage Created 305 | . 48 . . . 257 Parts 24 | . 5 . . . 19 Haulers Intercepted 1 | . . . . . 1 Recyclers Shooed . | . . . . . . Parts Field Recycled . | . . . . . . Retrieved Matter . | . . . . . . Parts Self-Destructed . | . . . . . . Prevented . | . . . . . . Kills | -11 -10 -10 -10 -9 -8 ------- Run | Yrd Mat Min Exi Min Mat Combat Hostiles Destroyed 12 | . 3 . . . 9 Guns 12 | . 3 . . . 9 Classes Destroyed 4 | . 1 . . . 3 Hauler 1 | . . . . . 1 Swarmer 8 | . 3 . . . 5 Grunt 3 | . . . . . 3 Sentry 1 | . . . . . 1 Best Kill Streak 3 | . 3 . . . 3 Combat Bots Only 3 | . 3 . . . 3 Max Kills in Single Turn 1 | . 1 . . . 1 Gunslinging . | . . . . . . Exploded . | . . . . . . Melee . | . . . . . . Uniques/NPCs Destroyed . | . . . . . . Combat | -11 -10 -10 -10 -9 -8 -------- Run | Yrd Mat Min Exi Min Mat Hostile Shots Fired 102 | . 30 . . . 72 Missed 39 | . 8 . . . 31 Damage Taken 762 | . 194 . . . 568 Core 201 | . 79 . . . 122 Absorbed by Shields . | . . . . . . Core Remaining (%) 84 | 100 . . . 68 . Volleys Fired 44 | . 9 . . . 35 Largest 2 | . 2 . . . 1 Hottest 65 | . 40 . . . 65 Shots Fired 51 | . 16 . . . 35 Gun 51 | . 16 . . . 35 Cannon . | . . . . . . Launcher . | . . . . . . Special . | . . . . . . Kinetic 14 | . 14 . . . . Thermal 37 | . 2 . . . 35 Explosive . | . . . . . . Electromagnetic . | . . . . . . Robot Hit Streak 8 | . 3 . . . 8 Robot Miss Streak 5 | . 5 . . . 5 Penetration Max . | . . . . . . Secondary Targets . | . . . . . . Shots Hit Robots 41 | . 6 . . . 35 Core Hits 49 | . 4 . . . 45 Critical Kills . | . . . . . . Critical Parts Destroyed . | . . . . . . Critical Strikes . | . . . . . . Melee Attacks 6 | . . . . . 6 Impact . | . . . . . . Slashing . | . . . . . . Piercing . | . . . . . . Sneak Attacks . | . . . . . . Combat Hostiles . | . . . . . . Follow-up Attacks . | . . . . . . Damage Inflicted 432 | . 50 . . . 382 Guns 432 | . 50 . . . 382 Cannons . | . . . . . . Explosions . | . . . . . . Melee . | . . . . . . Ramming . | . . . . . . Kinetic 28 | . 28 . . . . Thermal 404 | . 22 . . . 382 Explosive . | . . . . . . Electromagnetic . | . . . . . . Impact . | . . . . . . Slashing . | . . . . . . Piercing . | . . . . . . Highest Corruption . | . . . . . . Average Corruption . | . . . . . . Corruption Purged . | . . . . . . Corruption Blocked . | . . . . . . Overload Shots . | . . . . . . Overflow Damage . | . . . . . . Projectiles . | . . . . . . Explosions . | . . . . . . Melee . | . . . . . . Knockbacks . | . . . . . . Impact . | . . . . . . Kinetic . | . . . . . . Secondary . | . . . . . . Self-Inflicted Damage . | . . . . . . Shots . | . . . . . . Rammed . | . . . . . . Targets Rammed . | . . . . . . Kicked . | . . . . . . Crushed . | . . . . . . Highest Temperature 402 | . 20 . . . 402 Average Temperature 106 | . 10 . . . 112 Received Heat Transfer 303 | . 42 . . . 261 Effects 1 | . . . . . 1 Shutdowns 1 | . . . . . 1 Siege Activations . | . . . . . . Robots Corrupted . | . . . . . . Combat Hostiles . | . . . . . . Parts Fried . | . . . . . . Impact Corruptions . | . . . . . . Robots Melted . | . . . . . . Combat Hostiles . | . . . . . . Parts Melted . | . . . . . . Heat Transferred 590 | . 50 . . . 540 Parts Sabotaged . | . . . . . . Parts Stolen . | . . . . . . Parts Stripped . | . . . . . . Power Chain Reactions . | . . . . . . Alert | -11 -10 -10 -10 -9 -8 ------- Run | Yrd Mat Min Exi Min Mat Peak Influence 230 | . 95 51 . . 230 Initial 36 | . . 36 . . . Average 76 | . 54 50 . . 115 Maximum Alert Level 1 | . . . . . 1 Low Security (%) 98 | 100 100 100 . 100 96 Level 1 1 | . . . . . 3 Level 2 . | . . . . . . Level 3 . | . . . . . . Level 4 . | . . . . . . Level 5 . | . . . . . . High Security . | . . . . . . Max Security . | . . . . . . Squads Dispatched 5 | . 2 . . . 3 Investigation 2 | . 2 . . . . Extermination . | . . . . . . Reinforcement 3 | . . . . . 3 Assault . | . . . . . . Garrison . | . . . . . . Intercept . | . . . . . . Searches Triggered . | . . . . . . Construction Impeded . | . . . . . . Haulers Reinforced . | . . . . . . Active Scanning Responses . | . . . . . . Cargo Convoy Interrupts . | . . . . . . Stealth | -11 -10 -10 -10 -9 -8 --------- Run | Yrd Mat Min Exi Min Mat Distress Signals 1 | . . . . . 1 Communications Jammed . | . . . . . . Distress Signals . | . . . . . . Times Spotted 36 | . 10 . . . 26 Peak Tracking Total 17 | . 6 . . . 17 Tactical Retreats 6 | . 1 . . . 5 Traps | -11 -10 -10 -10 -9 -8 ------- Run | Yrd Mat Min Exi Min Mat Traps Triggered 4 | . 4 . . . . Indirectly . | . . . . . . Trap Hack Attempts . | . . . . . . Triggered . | . . . . . . Disarmed . | . . . . . . Reprogrammed 6 | . 6 . . . . Reused 1 | . 1 . . . . Traps Reconfigurated 1 | . . . . . 1 Traps Extracted . | . . . . . . Installed . | . . . . . . Triggered 1 | . 1 . . . . Machines | -11 -10 -10 -10 -9 -8 ---------- Run | Yrd Mat Min Exi Min Mat Machines Disabled . | . . . . . . Max in Single Turn . | . . . . . . Machines Repaired . | . . . . . . Machines Dismantled . | . . . . . . Machines Sabotaged . | . . . . . . Overloaded Fab Kills . | . . . . . . Hacking | -11 -10 -10 -10 -9 -8 --------- Run | Yrd Mat Min Exi Min Mat Machines Accessed 3 | . 1 . 1 . 1 Terminals 2 | . 1 . . . 1 Fabricators . | . . . . . . Repair Stations . | . . . . . . Recycling Units . | . . . . . . Scanalyzers . | . . . . . . Garrison Access . | . . . . . . Total Hacks 8 | . 4 . 1 . 3 Successful 4 | . 2 . 1 . 1 Failed 4 | . 2 . . . 2 Catastrophic . | . . . . . . Database Lockouts . | . . . . . . Manual 3 | . . . 3 . . Terminals 7 | . 4 . . . 3 Fabricators . | . . . . . . Repair Stations . | . . . . . . Recycling Units . | . . . . . . Scanalyzers . | . . . . . . Garrison Access . | . . . . . . Terminal Hacks 4 | . 2 . 1 . 1 Record 1 | . . . 1 . . Reprogram Traps 1 | . 1 . . . . Hauler Manifests 1 | . . . . . 1 Zone Layout 1 | . 1 . . . . Fabricator Hacks . | . . . . . . Repair Station Hacks . | . . . . . . Recycling Unit Hacks . | . . . . . . Scanalyzer . | . . . . . . Garrison Access Hacks . | . . . . . . Unauthorized Hacks . | . . . . . . Terminals . | . . . . . . Fabricators . | . . . . . . Repair Stations . | . . . . . . Recycling Units . | . . . . . . Scanalyzers . | . . . . . . Garrison Access . | . . . . . . Data Cores Recovered . | . . . . . . Used . | . . . . . . Hacking Detections 2 | . 1 . . . 1 Full Trace Events 1 | . 1 . . . . Feedback Events . | . . . . . . Feedback Blocked . | . . . . . . Robot Schematics Acquired . | . . . . . . Robots Built . | . . . . . . Authchips . | . . . . . . Time . | . . . . . . Total Robot Build Rating . | . . . . . . Part Schematics Acquired . | . . . . . . Parts Built . | . . . . . . Authchips . | . . . . . . Time . | . . . . . . Total Part Build Rating . | . . . . . . Parts Repaired . | . . . . . . Time . | . . . . . . Parts Recycled . | . . . . . . Recycled Matter . | . . . . . . Retrieved Matter . | . . . . . . Retrieved Components . | . . . . . . Parts Scanalyzed . | . . . . . . Part Schematics Acquired . | . . . . . . Parts Damaged . | . . . . . . Bothacking | -11 -10 -10 -10 -9 -8 ------------ Run | Yrd Mat Min Exi Min Mat Used RIF Installer . | . . . . . . Robots Hacked 1 | . . . . . 1 Non-combat . | . . . . . . Combat 1 | . . . . . 1 Robot Hacks Applied 1 | . . . . . 1 parse_system 1 | . . . . . 1 Relay Couplers Released . | . . . . . . Fabnet Peak Effective % . | . . . . . . Robots Rewired . | . . . . . . Allies Hacked . | . . . . . . Hacks Repelled . | . . . . . . Allies | -11 -10 -10 -10 -9 -8 -------- Run | Yrd Mat Min Exi Min Mat Total Allies . | . . . . . . Largest Group . | . . . . . . Highest-Rated Group . | . . . . . . Highest-Rated Ally . | . . . . . . Total Orders 7 | . . . 3 2 2 EXPLORE 6 | . . . 2 2 2 RETURN 1 | . . . 1 . . Ally Attacks . | . . . . . . Total Damage . | . . . . . . Kills . | . . . . . . Allies Corrupted . | . . . . . . Allies Melted . | . . . . . . Intel | -11 -10 -10 -10 -9 -8 ------- Run | Yrd Mat Min Exi Min Mat Robot Analysis Total . | . . . . . . Derelict Logs Recovered 2 | . . 1 . 1 . Drone Launches 5 | . . . 1 2 2 Drone Recoveries 5 | . . . 1 2 2 Exploration | -11 -10 -10 -10 -9 -8 ------------- Run | Yrd Mat Min Exi Min Mat Turns Passed 1108 | 54 221 166 112 76 479 Spaces Moved 1390 | 45 290 307 248 68 432 Core 10 | 10 . . . . . Treads . | . . . . . . Legs 100 | 35 65 . . . . Wheels . | . . . . . . Hover . | . . . . . . Flight 1280 | . 225 307 248 68 432 Fastest Speed 31 | 50 37 37 37 37 31 Average Speed 42 | 104 56 37 37 37 36 Slowest Speed 120 | 120 120 37 37 37 117 Overloaded Moves . | . . . . . . Propulsion Burnouts . | . . . . . . Robots Hopped 16 | . 8 4 . 1 3 Cave-ins Triggered . | . . . . . . Exploration Rate (%) 42 | 3 30 76 91 15 38 Regions Visited 5 Branch Regions 3 Pre-discovered Areas 2 | . . 1 . 1 . Known Exits Taken . | . . . . . . Unknown Exits Taken 5 | 1 1 1 1 1 . Scrap Searched 2 | . . 1 . 1 . Spaces Dug . | . . . . . . Terrain Destroyed . | . . . . . . Melee . | . . . . . . Projectile . | . . . . . . AOE . | . . . . . . Terrain Rammed . | . . . . . . Walls Destroyed . | . . . . . . Machines Disabled . | . . . . . . Actions | -11 -10 -10 -10 -9 -8 --------- Run | Yrd Mat Min Exi Min Mat Total 1828 | 49 325 354 268 117 715 Wait 336 | . 6 50 12 51 217 Move 1356 | 44 276 298 247 65 426 Hop 13 | . 5 4 . 1 3 Pick Up 11 | . 7 . 1 . 3 Fast Attach 27 | 5 10 . 3 . 9 Attach 11 | . 4 1 1 . 5 Detach 10 | . 4 . 3 . 3 Swap 3 | . . 1 . . 2 Drop 11 | . 4 . 1 . 6 Fire 44 | . 9 . . . 35 Melee 6 | . . . . . 6 Ram . | . . . . . . Kick . | . . . . . . Crush . | . . . . . . Escape Stasis . | . . . . . . Rewire . | . . . . . . Trap . | . . . . . . Miscellaneous . | . . . . . . Route ------- -11/Scrapyard -10/Materials -10/Mines -10/Exiles (discovered 2 exits: [*Min x2]) -9/Mines -8/Materials (discovered 2 exits: [*Fac] / [*Sto]) History --------- Turn | Location | Event 6 | -11/Scrapyard | Discovered new exit (range 14) 55 | -11/Scrapyard | Entered Materials 273 | -10/Materials | Discovered new exit (range 10) 276 | -10/Materials | Entered Mines 304 | -10/Mines | Build established: Mutant 320 | -10/Mines | Assembled infested the area 440 | -10/Mines | Deemed a non-threat by the Exiles lab entrance 440 | -10/Mines | Discovered new exit (range 6) 442 | -10/Mines | Entered Exiles 452 | -10/Exiles | Met 8R-AWN 457 | -10/Exiles | Met EX-HEX 468 | -10/Exiles | Met EX-BIN 473 | -10/Exiles | Aligned with FarCom system 474 | -10/Exiles | Given EX-Vault access code 489 | -10/Exiles | Opened EX-Vault 491 | -10/Exiles | Found Prototype Device 491 | -10/Exiles | Identified Supersonic Drone Bay 495 | -10/Exiles | Found Prototype Device 495 | -10/Exiles | Identified Trap Reconfigurator 498 | -10/Exiles | Found Prototype Storage 498 | -10/Exiles | Identified Superbattery 510 | -10/Exiles | Warned to stay clear of 0b10 Research branches 519 | -10/Exiles | Discovered new exit (range 57) 525 | -10/Exiles | Discovered new exit (range 71) 526 | -10/Exiles | Met EX-DEC 554 | -10/Exiles | Stole three prototypes: Trap Reconfigurator, Supersonic Drone Bay, Superbattery 554 | -10/Exiles | Entered Mines 557 | -9/Mines | Discovered new exit (range 29) 566 | -9/Mines | Learned location of Zion (-6) 630 | -9/Mines | Entered Materials 630 | -8/Materials | Evolved 4 slots: Power x1, Propulsion x2, Utility x1 641 | -8/Materials | Discovered new exit (range 16) 825 | -8/Materials | Discovered new exit (range 40) 1052 | -8/Materials | Lost 3 parts (1p1n1w) 1109 | -8/Materials | Self-destructed Last Messages --------------- 01029_ O-16 Technician: "IFF HANDSHAKE FAILED. SECURING TERMINAL." 01037_ ALERT: Hostiles spotted, dispatching reinforcements to Terminal M007. 01042_ ALERT: Suspicious intruders detected, dispatching Cutter reinforcements to area. 01053_ S-10 Pest destroyed. 01060_ Acquired Lgt. Ion Engine. 01065_ Acquired Flight Unit. 01071_ Acquired 22 matter. 01072_ Acquired 18 matter. 01089_ G-47 Trooper destroyed. 01091_ Acquired 39 matter. 01101_ Y-45 Defender destroyed. 01104_ Lgt. Ion Engine destroyed. 01104_ Supersonic Drone Bay destroyed. 01106_ Power failure, Lgt. Ion Engine shutdown. 01107_ Flight Unit destroyed. 01107_ Critical hit (Burn: +37). 01107_ Flight Unit destroyed. Map ----- +----------------------------------------------------+ | ???????????????????????????????????? | | ???????????????????????????????????? | | ???????????????????????????????????? | | ???????????????????????????????????? | | ???????????????????????????????????? | | ???????????????????????????????????? | | ???????????????????????????????????? | | ???????????????????????????????????? | | ???????????????????????????????????? | | ???????????????????????????????????? | | ???????????????????????????????????? | | ???????????????????????????????????? | | ???????????????????????????????????? | | ???????????????????????????????????? | | ???????????????????????????????????? | | ???????????????????????????????????? | | ??????????????????????????########## | | ??????????????????????????# / ! # | | ??????????????????????????# # | | ??????????????????????????# """ # | | ??????????????????????????# """"" [# | | ??###################?????# """"" # | | ## # ## #?????# """"" # | | # ## """ #?????# """ [# | | # ## """ #??#### [ # | | # ## """ #??#=@/ !g= # | | # ## = #??#Y#####+##### | | # " ## """ ####g???# #???? | | # T ## """ + ##g#### #???? | | # " ## """ # #g # #???? | | ?# ## # # """ # #???? | | #+#####+########+#### + """ # #???? | | #??# # """ Y #???? | | #### # # #???? | | #### T # """ # #???? | | [ ## # """ # #???? | | ## ! # """ # #???? | | ## # # #???? | | ## # # #???? | | " ## c + # #???? | | " + # / # #???? | | " ## " """"" c ####### #???? | | ## """"""""" #????] ???? | | #### """ """ ??? ???? | | ???# ?? ??? H ???? | | ???# ???? #???? ???? | | ???# ????????#+#??????? #???? | | ??? ??????????????????? ????? | | ?????+###??????????????????????????? | | ???????????????????????????????????? | +----------------------------------------------------+ Best States ------------- Heat Dissipation 31 Energy Generation 15 Energy Capacity 1650 Matter Stores 188 Matter Capacity 300 Sight Range 16 Terrain Scan Density 10 ECM Strength 1 Evasion (%) 63 Item Schematics ----------------- None Robot Schematics ------------------ None Fabricated ------------ Nothing Alien Tech Used ----------------- None Achievements -------------- None Challenges ------------ None Game ------ Seed MicroMetaPendant Manual? 0 Play Time 00:21:15 Cumulative 11.9 hours Start 2024.04.11 @ 10:10:15 End 2024.04.11 @ 10:30:07 Sessions 1 Manual Loads 0 Difficulty Rogue Special Mode None Game No. 35 Rogue 32 Adventurer 3 Explorer 0 Win Type - Total 0 Types 0/0/0/0/0/0/0/0/0 Lore% 10 Gallery% 17 Achievement% 15 Wizard Run 0 Options --------- Layout 2 ASCII 0 Keyboard 1 Movement Numpad Keybinds 0 Fullscreen 2 Font 24/Smallcaps Map View 50x44 Zoom Use 0% Tactical HUD 1 Map Filters NONE Filters NONE Steam 1 RUN: 56a5fbbc-a342-44c9-8853-b6ebbbc39c89